[Event "*** Titled Tuesday Blitz"]
[Site "Chess.com"]
[Date "2021.04.06"]
[Round "3"]
[White "Stormeman100100"]
[Black "manuellarrea"]
[Result "1/2-1/2"]
[WhiteElo "2509"]
[BlackElo "2255"]
[TimeControl "180+1"]
[EndTime "10:30:24 PDT"]
[Termination "Game drawn - insufficient material"]

1. d4 {[%clk 0:03:00.9]} 1... Nf6 {[%clk 0:02:58.3]} 2. c4 {[%clk 0:02:58.2]}
2... e6 {[%clk 0:02:58.3]} 3. Nf3 {[%clk 0:02:58.7]} 3... d5 {[%clk 0:02:58.6]}
4. Nc3 {[%clk 0:02:58.1]} 4... c5 {[%clk 0:02:58.6]} 5. cxd5 {[%clk 0:02:57]}
5... Nxd5 {[%clk 0:02:58.3]} 6. e4 {[%clk 0:02:57.3]} 6... Nxc3 {[%clk
0:02:58.3]} 7. bxc3 {[%clk 0:02:58.2]} 7... cxd4 {[%clk 0:02:58.5]} 8. cxd4
{[%clk 0:02:59.1]} 8... Bb4+ {[%clk 0:02:58.2]} 9. Bd2 {[%clk 0:03:00]} 9...
Bxd2+ {[%clk 0:02:58.2]} 10. Qxd2 {[%clk 0:03:00.9]} 10... O-O {[%clk
0:02:57.4]} 11. Rc1 {[%clk 0:03:00.2]} 11... Nd7 {[%clk 0:02:50.9]} 12. Bd3
{[%clk 0:02:56.3]} 12... b6 {[%clk 0:02:50.3]} 13. O-O {[%clk 0:02:53.8]} 13...
Bb7 {[%clk 0:02:50.3]} 14. Qf4 {[%clk 0:02:53.9]} 14... Rc8 {[%clk 0:02:48.8]}
15. Rxc8 {[%clk 0:02:53.3]} 15... Qxc8 {[%clk 0:02:48.7]} 16. Rc1 {[%clk
0:02:53.8]} 16... Qb8 {[%clk 0:02:48.6]} 17. Qxb8 {[%clk 0:02:35.2]} 17... Rxb8
{[%clk 0:02:47.3]} 18. Rc7 {[%clk 0:02:32.1]} 18... Nf6 {[%clk 0:02:45.9]} 19.
Ng5 {[%clk 0:02:18.4]} 19... h6 {[%clk 0:02:19.6]} 20. Nxf7 {[%clk 0:01:56.4]}
20... Bxe4 {[%clk 0:01:54.1]} 21. Bxe4 {[%clk 0:01:48.7]} 21... Nxe4 {[%clk
0:01:53.5]} 22. Ne5 {[%clk 0:01:49]} 22... Rd8 {[%clk 0:01:46]} 23. Nc6 {[%clk
0:01:37.6]} 23... Rd6 {[%clk 0:01:41.1]} 24. f3 {[%clk 0:01:17.4]} 24... Nf6
{[%clk 0:01:29.3]} 25. Rc8+ {[%clk 0:01:13.3]} 25... Kh7 {[%clk 0:01:26.6]} 26.
Kf2 {[%clk 0:00:58.6]} 26... a6 {[%clk 0:01:16.7]} 27. h4 {[%clk 0:00:57.6]}
27... h5 {[%clk 0:01:06.4]} 28. Ke3 {[%clk 0:00:42.2]} 28... a5 {[%clk
0:01:04.3]} 29. Kf4 {[%clk 0:00:34.9]} 29... Rd5 {[%clk 0:00:54.9]} 30. g4
{[%clk 0:00:28.5]} 30... hxg4 {[%clk 0:00:50.5]} 31. fxg4 {[%clk 0:00:28.3]}
31... a4 {[%clk 0:00:34.1]} 32. Rb8 {[%clk 0:00:13.5]} 32... b5 {[%clk
0:00:32.4]} 33. g5 {[%clk 0:00:10.4]} 33... Nh5+ {[%clk 0:00:31.1]} 34. Kg4
{[%clk 0:00:10.8]} 34... g6 {[%clk 0:00:30.1]} 35. Rb7+ {[%clk 0:00:11.2]} 35...
Kh8 {[%clk 0:00:29]} 36. Re7 {[%clk 0:00:09.3]} 36... Rd6 {[%clk 0:00:22.3]} 37.
Rc7 {[%clk 0:00:09.3]} 37... Ng7 {[%clk 0:00:19.2]} 38. Kf3 {[%clk 0:00:08.1]}
38... Nf5 {[%clk 0:00:18.4]} 39. Ke4 {[%clk 0:00:08.2]} 39... Nxh4 {[%clk
0:00:15.6]} 40. Ne5 {[%clk 0:00:08.5]} 40... Kg8 {[%clk 0:00:12]} 41. Rb7 {[%clk
0:00:05.8]} 41... Rd5 {[%clk 0:00:11.1]} 42. Nc6 {[%clk 0:00:04.8]} 42... Kf8
{[%clk 0:00:08.8]} 43. Nb4 {[%clk 0:00:04.9]} 43... Rd6 {[%clk 0:00:07.1]} 44.
Rxb5 {[%clk 0:00:05.2]} 44... Nf5 {[%clk 0:00:05.8]} 45. d5 {[%clk 0:00:05.5]}
45... exd5+ {[%clk 0:00:05.1]} 46. Nxd5 {[%clk 0:00:05.5]} 46... Ne7 {[%clk
0:00:04.1]} 47. Rb8+ {[%clk 0:00:04.5]} 47... Kf7 {[%clk 0:00:03.9]} 48. Rb7
{[%clk 0:00:04.6]} 48... Re6+ {[%clk 0:00:03.8]} 49. Kd4 {[%clk 0:00:04.4]}
49... Re1 {[%clk 0:00:03.2]} 50. Rxe7+ {[%clk 0:00:03.9]} 50... Rxe7 {[%clk
0:00:02.6]} 51. Nxe7 {[%clk 0:00:04]} 51... Kxe7 {[%clk 0:00:02.9]} 52. Ke5
{[%clk 0:00:04.9]} 52... Kf7 {[%clk 0:00:02.6]} 53. a3 {[%clk 0:00:04.2]} 53...
Ke7 {[%clk 0:00:02.3]} 54. Kd5 {[%clk 0:00:04]} 54... Kd7 {[%clk 0:00:02.4]} 55.
Kc5 {[%clk 0:00:03.7]} 55... Ke6 {[%clk 0:00:02.7]} 56. Kb5 {[%clk 0:00:03.7]}
56... Kf5 {[%clk 0:00:03.3]} 57. Kxa4 {[%clk 0:00:04.6]} 57... Kxg5 {[%clk
0:00:04]} 58. Kb5 {[%clk 0:00:05.2]} 58... Kf4 {[%clk 0:00:04.7]} 59. a4 {[%clk
0:00:06]} 59... g5 {[%clk 0:00:05.3]} 60. a5 {[%clk 0:00:06.7]} 60... g4 {[%clk
0:00:06]} 61. a6 {[%clk 0:00:07.2]} 61... g3 {[%clk 0:00:06]} 62. a7 {[%clk
0:00:07.9]} 62... g2 {[%clk 0:00:06.4]} 63. a8=Q {[%clk 0:00:08.6]} 63... g1=Q
{[%clk 0:00:06.8]} 64. Qf8+ {[%clk 0:00:09.4]} 64... Ke4 {[%clk 0:00:05.6]} 65.
Qe7+ {[%clk 0:00:09.2]} 65... Kf3 {[%clk 0:00:05.3]} 66. Qf6+ {[%clk 0:00:09]}
66... Ke2 {[%clk 0:00:05]} 67. Qb2+ {[%clk 0:00:08.9]} 67... Kf1 {[%clk
0:00:04.8]} 68. Kc4 {[%clk 0:00:07.5]} 68... Qf2 {[%clk 0:00:03.9]} 69. Qc1+
{[%clk 0:00:05.7]} 69... Qe1 {[%clk 0:00:03.6]} 70. Qf4+ {[%clk 0:00:05.9]}
70... Qf2 {[%clk 0:00:03.5]} 71. Qd4 {[%clk 0:00:05.3]} 71... Qe2+ {[%clk
0:00:03]} 72. Kc3 {[%clk 0:00:04.9]} 72... Qe1+ {[%clk 0:00:02.5]} 73. Kc2
{[%clk 0:00:05]} 73... Qf2+ {[%clk 0:00:02.4]} 74. Qxf2+ {[%clk 0:00:04.8]}
74... Kxf2 {[%clk 0:00:01.5]} 1/2-1/2

[Event "*** Titled Tuesday Blitz"]
[Site "Chess.com"]
[Date "2021.04.06"]
[Round "3"]
[White "Mamedyarov_twitch"]
[Black "Kostya_Nikologorskiy"]
[Result "1-0"]
[WhiteElo "3004"]
[BlackElo "2672"]
[TimeControl "180+1"]
[EndTime "10:30:28 PDT"]
[Termination "Mamedyarov_twitch won by resignation"]

1. e4 {[%clk 0:02:21]} 1... e6 {[%clk 0:02:59.9]} 2. d4 {[%clk 0:02:13.3]} 2...
d5 {[%clk 0:03:00.4]} 3. exd5 {[%clk 0:02:14.2]} 3... exd5 {[%clk 0:02:59.9]} 4.
Bd3 {[%clk 0:02:14.8]} 4... Bd6 {[%clk 0:02:57.3]} 5. Nf3 {[%clk 0:02:13.7]}
5... Nc6 {[%clk 0:02:56.1]} 6. O-O {[%clk 0:02:11.2]} 6... Bg4 {[%clk
0:02:55.1]} 7. Re1+ {[%clk 0:02:10.1]} 7... Nge7 {[%clk 0:02:54]} 8. c3 {[%clk
0:02:07.1]} 8... Qd7 {[%clk 0:02:51.7]} 9. h3 {[%clk 0:01:59.5]} 9... Bh5 {[%clk
0:02:48.7]} 10. Nbd2 {[%clk 0:01:57.5]} 10... O-O-O {[%clk 0:02:48.6]} 11. b4
{[%clk 0:01:55.3]} 11... Rde8 {[%clk 0:02:48.8]} 12. Nb3 {[%clk 0:01:51.6]}
12... Ng6 {[%clk 0:02:40]} 13. Be2 {[%clk 0:01:42]} 13... Bxf3 {[%clk
0:02:31.4]} 14. Bxf3 {[%clk 0:01:40.4]} 14... Rxe1+ {[%clk 0:02:32.3]} 15. Qxe1
{[%clk 0:01:41]} 15... Re8 {[%clk 0:02:33.2]} 16. Qd1 {[%clk 0:01:34.6]} 16...
Qe6 {[%clk 0:02:29.9]} 17. Bd2 {[%clk 0:01:06.1]} 17... Nh4 {[%clk 0:02:29.3]}
18. b5 {[%clk 0:01:03]} 18... Nb8 {[%clk 0:02:10]} 19. Nc5 {[%clk 0:01:02.3]}
19... Bxc5 {[%clk 0:02:09.4]} 20. dxc5 {[%clk 0:01:03.2]} 20... Nd7 {[%clk
0:02:10.1]} 21. Be3 {[%clk 0:01:02.7]} 21... Nxf3+ {[%clk 0:02:08.5]} 22. Qxf3
{[%clk 0:01:03.6]} 22... Ne5 {[%clk 0:02:06.2]} 23. Qh5 {[%clk 0:01:02]} 23...
Nc4 {[%clk 0:01:59.4]} 24. Bd4 {[%clk 0:00:58.9]} 24... g6 {[%clk 0:01:16]} 25.
Qxh7 {[%clk 0:00:56.2]} 25... Qf5 {[%clk 0:01:12.1]} 26. Qg7 {[%clk 0:00:44.4]}
26... Na3 {[%clk 0:01:00.5]} 27. b6 {[%clk 0:00:43.5]} 27... axb6 {[%clk
0:00:59.7]} 28. cxb6 {[%clk 0:00:44.4]} 28... c6 {[%clk 0:00:59.8]} 29. Rf1
{[%clk 0:00:40.1]} 29... Kd7 {[%clk 0:00:56]} 30. f4 {[%clk 0:00:32.2]} 30...
Nc2 {[%clk 0:00:52.7]} 31. Be5 {[%clk 0:00:25.8]} 31... Ne3 {[%clk 0:00:48.8]}
32. Rf3 {[%clk 0:00:24]} 32... Nc4 {[%clk 0:00:41.4]} 33. Bd4 {[%clk 0:00:21.5]}
33... Nd2 {[%clk 0:00:38.9]} 34. Rf2 {[%clk 0:00:15.7]} 34... Qb1+ {[%clk
0:00:33.3]} 35. Kh2 {[%clk 0:00:15]} 35... Nf1+ {[%clk 0:00:33.8]} 36. Rxf1
{[%clk 0:00:15.2]} 36... Qxf1 {[%clk 0:00:34.7]} 37. Qxf7+ {[%clk 0:00:15]}
37... Re7 {[%clk 0:00:35.4]} 38. Qf8 {[%clk 0:00:14.9]} 38... Re2 {[%clk
0:00:29.4]} 39. Qf7+ {[%clk 0:00:15.1]} 39... Re7 {[%clk 0:00:30]} 40. Qf6
{[%clk 0:00:15.5]} 40... Re2 {[%clk 0:00:28.5]} 41. Qg5 {[%clk 0:00:14.4]} 41...
Re6 {[%clk 0:00:16.9]} 42. Be5 {[%clk 0:00:13.3]} 42... c5 {[%clk 0:00:17.1]}
43. Qh6 {[%clk 0:00:12.6]} 43... Kc6 {[%clk 0:00:17.4]} 44. Qg7 {[%clk 0:00:13]}
44... Kxb6 {[%clk 0:00:17.1]} 45. Qd7 {[%clk 0:00:13.3]} 45... Rc6 {[%clk
0:00:16.8]} 46. Qd8+ {[%clk 0:00:12.9]} 46... Ka6 {[%clk 0:00:15.3]} 47. Qxd5
{[%clk 0:00:13.1]} 47... Qb5 {[%clk 0:00:11.6]} 48. c4 {[%clk 0:00:12.6]} 48...
Qa4 {[%clk 0:00:11.9]} 49. Qg8 {[%clk 0:00:12.8]} 49... Ka7 {[%clk 0:00:11.8]}
50. Qb8+ {[%clk 0:00:12.8]} 50... Kb6 {[%clk 0:00:12.3]} 51. Qd8+ {[%clk
0:00:13.3]} 51... Ka7 {[%clk 0:00:11.5]} 52. Bb8+ {[%clk 0:00:13.5]} 52... Ka6
{[%clk 0:00:11.7]} 53. Bc7 {[%clk 0:00:14]} 53... Qxc4 {[%clk 0:00:11.7]} 54.
Qb8 {[%clk 0:00:13.7]} 54... Qd5 {[%clk 0:00:09.7]} 55. Qa8+ {[%clk 0:00:13.7]}
55... Kb5 {[%clk 0:00:10.3]} 56. Qa5+ {[%clk 0:00:14.1]} 56... Kc4 {[%clk
0:00:10.1]} 57. Qa4+ {[%clk 0:00:14.5]} 57... Kd3 {[%clk 0:00:10.5]} 58. Be5
{[%clk 0:00:15]} 58... Rb6 {[%clk 0:00:05]} 59. Qd1+ {[%clk 0:00:14.7]} 59...
Kc4 {[%clk 0:00:05.7]} 60. Qc2+ {[%clk 0:00:12.6]} 60... Kb5 {[%clk 0:00:05.6]}
61. Qe2+ {[%clk 0:00:12.7]} 61... Kc6 {[%clk 0:00:06]} 62. Qg4 {[%clk
0:00:12.2]} 62... Ra6 {[%clk 0:00:06.4]} 63. Qxg6+ {[%clk 0:00:12.2]} 63... Kb5
{[%clk 0:00:07]} 64. Qb1+ {[%clk 0:00:12.4]} 64... Kc6 {[%clk 0:00:07]} 65. h4
{[%clk 0:00:12.7]} 65... Rxa2 {[%clk 0:00:07.3]} 66. Qg6+ {[%clk 0:00:11.6]}
66... Kb5 {[%clk 0:00:07.3]} 67. h5 {[%clk 0:00:12.1]} 67... Ra6 {[%clk
0:00:05.9]} 68. Qe8+ {[%clk 0:00:12.1]} 68... Qc6 {[%clk 0:00:05.5]} 69. Qxc6+
{[%clk 0:00:12.1]} 69... Rxc6 {[%clk 0:00:05.2]} 70. g4 {[%clk 0:00:12.6]} 70...
c4 {[%clk 0:00:05.8]} 71. Bc3 {[%clk 0:00:12.5]} 71... Ka4 {[%clk 0:00:05.6]}
72. g5 {[%clk 0:00:13]} 72... Kb3 {[%clk 0:00:06.4]} 73. Be5 {[%clk 0:00:13.4]}
73... b5 {[%clk 0:00:07]} 74. h6 {[%clk 0:00:13.2]} 74... b4 {[%clk 0:00:07.2]}
75. h7 {[%clk 0:00:13.6]} 75... Rc8 {[%clk 0:00:07.8]} 76. g6 {[%clk 0:00:14.1]}
76... c3 {[%clk 0:00:08]} 77. g7 {[%clk 0:00:14.5]} 77... c2 {[%clk 0:00:08.2]}
78. g8=Q+ {[%clk 0:00:15.1]} 78... Rc4 {[%clk 0:00:05.7]} 79. Qxc4+ {[%clk
0:00:14.1]} 79... Kxc4 {[%clk 0:00:06.6]} 80. h8=Q {[%clk 0:00:14.8]} 1-0

[Event "*** Titled Tuesday Blitz"]
[Site "Chess.com"]
[Date "2021.04.06"]
[Round "3"]
[White "anon481216"]
[Black "maximych26"]
[Result "1-0"]
[WhiteElo "2516"]
[BlackElo "2247"]
[TimeControl "180+1"]
[EndTime "10:30:30 PDT"]
[Termination "anon481216 won on time"]

1. d4 {[%clk 0:03:00.9]} 1... Nf6 {[%clk 0:02:59.2]} 2. c4 {[%clk 0:03:01]} 2...
c5 {[%clk 0:02:59.5]} 3. d5 {[%clk 0:03:00.2]} 3... b5 {[%clk 0:02:59.7]} 4.
cxb5 {[%clk 0:02:59.8]} 4... a6 {[%clk 0:03:00.1]} 5. b6 {[%clk 0:02:59.2]} 5...
Qxb6 {[%clk 0:02:59.8]} 6. Nc3 {[%clk 0:02:59.2]} 6... d6 {[%clk 0:02:59.5]} 7.
Nf3 {[%clk 0:02:59.3]} 7... g6 {[%clk 0:02:58]} 8. h3 {[%clk 0:02:58.8]} 8...
Bg7 {[%clk 0:02:58.1]} 9. e4 {[%clk 0:02:58.9]} 9... O-O {[%clk 0:02:58.1]} 10.
Bd3 {[%clk 0:02:58.6]} 10... Ne8 {[%clk 0:02:57.1]} 11. O-O {[%clk 0:02:57.1]}
11... Nc7 {[%clk 0:02:49.8]} 12. Nd2 {[%clk 0:02:56.5]} 12... Nb5 {[%clk
0:02:49.7]} 13. Nc4 {[%clk 0:02:54]} 13... Qd8 {[%clk 0:02:42.4]} 14. Na4 {[%clk
0:02:45.1]} 14... Nd7 {[%clk 0:02:36.9]} 15. Bf4 {[%clk 0:02:44]} 15... Rb8
{[%clk 0:02:15.9]} 16. Qd2 {[%clk 0:02:43.4]} 16... Nd4 {[%clk 0:02:12.9]} 17.
Bh6 {[%clk 0:02:34.5]} 17... Rb4 {[%clk 0:01:59.2]} 18. Bxg7 {[%clk 0:02:33.8]}
18... Kxg7 {[%clk 0:01:58.7]} 19. b3 {[%clk 0:02:33.9]} 19... Nf6 {[%clk
0:01:46.7]} 20. Rae1 {[%clk 0:02:31.5]} 20... Bd7 {[%clk 0:01:44.3]} 21. Nab2
{[%clk 0:02:26]} 21... Ne8 {[%clk 0:01:31.6]} 22. e5 {[%clk 0:02:21.7]} 22...
dxe5 {[%clk 0:01:14.2]} 23. Nxe5 {[%clk 0:02:21.3]} 23... Nd6 {[%clk 0:01:11.8]}
24. Nbc4 {[%clk 0:02:12.8]} 24... Bb5 {[%clk 0:01:05.9]} 25. Qc3 {[%clk
0:01:55.6]} 25... Bxc4 {[%clk 0:01:04.7]} 26. Bxc4 {[%clk 0:01:54.5]} 26... Nxc4
{[%clk 0:00:52.1]} 27. Nc6 {[%clk 0:01:39.2]} 27... Qxd5 {[%clk 0:00:22]} 28.
Nxb4 {[%clk 0:01:38.4]} 28... cxb4 {[%clk 0:00:21.4]} 29. Qxc4 {[%clk
0:01:38.1]} 29... Qxc4 {[%clk 0:00:19.7]} 30. bxc4 {[%clk 0:01:38.2]} 30... e6
{[%clk 0:00:20]} 31. Re4 {[%clk 0:01:25.4]} 31... Nc6 {[%clk 0:00:18.6]} 32. Rd1
{[%clk 0:01:22.8]} 32... Rc8 {[%clk 0:00:17.7]} 33. Rd7 {[%clk 0:01:19]} 33...
Kf8 {[%clk 0:00:17.5]} 34. Rb7 {[%clk 0:00:56.8]} 34... a5 {[%clk 0:00:16.7]}
35. c5 {[%clk 0:00:51.4]} 35... h5 {[%clk 0:00:15.7]} 36. Rc4 {[%clk 0:00:40.9]}
36... Kg7 {[%clk 0:00:14.7]} 37. g4 {[%clk 0:00:38.1]} 37... hxg4 {[%clk
0:00:13.2]} 38. hxg4 {[%clk 0:00:37.6]} 38... Ne5 {[%clk 0:00:13.4]} 39. Rc2
{[%clk 0:00:28.5]} 39... Nxg4 {[%clk 0:00:13.3]} 40. c6 {[%clk 0:00:28.2]} 40...
Nf6 {[%clk 0:00:11.6]} 41. c7 {[%clk 0:00:28]} 41... Nd5 {[%clk 0:00:11.7]} 42.
Ra7 {[%clk 0:00:25.2]} 42... Kf6 {[%clk 0:00:12.1]} 43. Rxa5 {[%clk 0:00:24]}
43... Rxc7 {[%clk 0:00:12.4]} 44. Rxc7 {[%clk 0:00:22.6]} 44... Nxc7 {[%clk
0:00:12.6]} 45. Kg2 {[%clk 0:00:22.9]} 45... Nd5 {[%clk 0:00:13.2]} 46. Kf3
{[%clk 0:00:23.1]} 46... Ke5 {[%clk 0:00:13.9]} 47. Ra7 {[%clk 0:00:23.1]} 47...
f5 {[%clk 0:00:14.1]} 48. Rg7 {[%clk 0:00:22.8]} 48... Kf6 {[%clk 0:00:14]} 49.
Rg8 {[%clk 0:00:23.1]} 49... g5 {[%clk 0:00:14.5]} 50. Rf8+ {[%clk 0:00:23]}
50... Ke5 {[%clk 0:00:14.2]} 51. Rg8 {[%clk 0:00:23]} 51... g4+ {[%clk
0:00:14.5]} 52. Ke2 {[%clk 0:00:23.3]} 52... Kf4 {[%clk 0:00:13.7]} 53. Re8
{[%clk 0:00:22.4]} 53... Ke5 {[%clk 0:00:13.7]} 54. Kd2 {[%clk 0:00:21.6]} 54...
Kf6 {[%clk 0:00:13.3]} 55. Rb8 {[%clk 0:00:20.6]} 55... Ke5 {[%clk 0:00:13.7]}
56. Rb5 {[%clk 0:00:20]} 56... Kd4 {[%clk 0:00:13.1]} 57. Rb8 {[%clk 0:00:19.1]}
57... e5 {[%clk 0:00:13.2]} 58. Rg8 {[%clk 0:00:18.8]} 58... Ke4 {[%clk
0:00:12.1]} 59. Rg7 {[%clk 0:00:18.1]} 59... Kf3 {[%clk 0:00:11.4]} 60. Ke1
{[%clk 0:00:18.1]} 60... f4 {[%clk 0:00:10.1]} 61. Rd7 {[%clk 0:00:17.7]} 61...
Nc3 {[%clk 0:00:09.5]} 62. a3 {[%clk 0:00:17]} 62... Na2 {[%clk 0:00:05.2]} 63.
Rd2 {[%clk 0:00:14]} 63... b3 {[%clk 0:00:03.3]} 64. a4 {[%clk 0:00:13.7]} 64...
Nb4 {[%clk 0:00:02.8]} 65. a5 {[%clk 0:00:11.7]} 65... g3 {[%clk 0:00:02.7]} 66.
fxg3 {[%clk 0:00:11.4]} 66... fxg3 {[%clk 0:00:02.6]} 67. Kf1 {[%clk 0:00:11.5]}
67... e4 {[%clk 0:00:02.9]} 68. Rb2 {[%clk 0:00:10.5]} 68... Nd3 {[%clk
0:00:01.3]} 69. Rxb3 {[%clk 0:00:10]} 69... Ke3 {[%clk 0:00:01.4]} 70. Kg2
{[%clk 0:00:09.2]} 70... Kd2 {[%clk 0:00:01.2]} 71. Kxg3 {[%clk 0:00:09.2]}
71... Nc5 {[%clk 0:00:01.3]} 72. Rb1 {[%clk 0:00:07.3]} 72... e3 {[%clk
0:00:01.5]} 73. Kf3 {[%clk 0:00:06.7]} 73... e2 {[%clk 0:00:01.9]} 74. Rb2+
{[%clk 0:00:06.9]} 74... Kd1 {[%clk 0:00:01.1]} 75. Rxe2 {[%clk 0:00:07.4]}
75... Na6 {[%clk 0:00:01.5]} 76. Re6 {[%clk 0:00:07.1]} 1-0

[Event "*** Titled Tuesday Blitz"]
[Site "Chess.com"]
[Date "2021.04.06"]
[Round "3"]
[White "schondeln"]
[Black "Goryachkina"]
[Result "0-1"]
[WhiteElo "2381"]
[BlackElo "2635"]
[TimeControl "180+1"]
[EndTime "10:30:35 PDT"]
[Termination "Goryachkina won by resignation"]

1. e4 {[%clk 0:03:00.9]} 1... c5 {[%clk 0:02:59.8]} 2. Nf3 {[%clk 0:03:00.8]}
2... e6 {[%clk 0:02:59.8]} 3. b3 {[%clk 0:03:00.7]} 3... d5 {[%clk 0:02:55.6]}
4. Bb5+ {[%clk 0:02:59.7]} 4... Bd7 {[%clk 0:02:53.2]} 5. Qe2 {[%clk 0:02:50.5]}
5... Bxb5 {[%clk 0:02:51.2]} 6. Qxb5+ {[%clk 0:02:50]} 6... Qd7 {[%clk
0:02:51.3]} 7. Qxd7+ {[%clk 0:02:42.1]} 7... Nxd7 {[%clk 0:02:52.2]} 8. exd5
{[%clk 0:02:32.8]} 8... exd5 {[%clk 0:02:52.7]} 9. Bb2 {[%clk 0:02:23.2]} 9...
Ngf6 {[%clk 0:02:47.5]} 10. O-O {[%clk 0:02:21.9]} 10... Bd6 {[%clk 0:02:14.3]}
11. Re1+ {[%clk 0:02:19.6]} 11... Kf8 {[%clk 0:02:14]} 12. Nc3 {[%clk
0:02:12.9]} 12... a6 {[%clk 0:02:03.9]} 13. a4 {[%clk 0:01:57.9]} 13... h6
{[%clk 0:01:59.3]} 14. Re2 {[%clk 0:01:43.2]} 14... Kg8 {[%clk 0:01:57]} 15.
Rae1 {[%clk 0:01:43]} 15... Kh7 {[%clk 0:01:55.6]} 16. h3 {[%clk 0:01:43.1]}
16... Rac8 {[%clk 0:01:51.3]} 17. d3 {[%clk 0:01:38.3]} 17... d4 {[%clk
0:01:46.3]} 18. Ne4 {[%clk 0:01:35.7]} 18... Nxe4 {[%clk 0:01:46.2]} 19. Rxe4
{[%clk 0:01:29.2]} 19... Nf6 {[%clk 0:01:44.8]} 20. R4e2 {[%clk 0:01:27.6]}
20... Nd5 {[%clk 0:01:43.8]} 21. g3 {[%clk 0:01:27]} 21... b6 {[%clk 0:01:30.1]}
22. Nd2 {[%clk 0:01:25.2]} 22... Rhd8 {[%clk 0:01:21]} 23. Nc4 {[%clk
0:01:16.1]} 23... Bc7 {[%clk 0:01:20.2]} 24. Kg2 {[%clk 0:01:10.1]} 24... Kg8
{[%clk 0:01:19.3]} 25. h4 {[%clk 0:01:08.7]} 25... f6 {[%clk 0:01:18.6]} 26. Bc1
{[%clk 0:01:04.4]} 26... Kf7 {[%clk 0:01:16.3]} 27. Bd2 {[%clk 0:01:04.1]} 27...
Re8 {[%clk 0:01:14.3]} 28. Rxe8 {[%clk 0:01:03]} 28... Rxe8 {[%clk 0:01:14.4]}
29. Rxe8 {[%clk 0:01:03.5]} 29... Kxe8 {[%clk 0:01:14.8]} 30. Kf3 {[%clk
0:01:01.4]} 30... Kf7 {[%clk 0:01:14.7]} 31. h5 {[%clk 0:00:58.8]} 31... Ke6
{[%clk 0:01:13.5]} 32. Ke4 {[%clk 0:00:53.1]} 32... f5+ {[%clk 0:01:13.2]} 33.
Kf3 {[%clk 0:00:53.3]} 33... Nf6 {[%clk 0:01:12.3]} 34. Bf4 {[%clk 0:00:50.6]}
34... Bxf4 {[%clk 0:01:04.2]} 35. gxf4 {[%clk 0:00:46.2]} 35... b5 {[%clk
0:01:04.5]} 36. axb5 {[%clk 0:00:46.2]} 36... axb5 {[%clk 0:01:05]} 37. Na3
{[%clk 0:00:30.8]} 37... b4 {[%clk 0:01:05]} 38. Nc4 {[%clk 0:00:29.8]} 38...
Nxh5 {[%clk 0:01:05.1]} 39. Nd2 {[%clk 0:00:25.6]} 39... g5 {[%clk 0:01:01.9]}
40. fxg5 {[%clk 0:00:24.8]} 40... hxg5 {[%clk 0:01:02.8]} 41. Nc4 {[%clk
0:00:25]} 41... g4+ {[%clk 0:00:59.8]} 42. Ke2 {[%clk 0:00:24.9]} 42... Nf4+
{[%clk 0:00:59.2]} 43. Kd2 {[%clk 0:00:24.8]} 43... Nd5 {[%clk 0:00:57.8]} 44.
Ke2 {[%clk 0:00:21.8]} 44... Nc3+ {[%clk 0:00:56.9]} 45. Kd2 {[%clk 0:00:21.7]}
45... f4 {[%clk 0:00:55.5]} 46. Nb6 {[%clk 0:00:20.7]} 46... Nb5 {[%clk
0:00:45.9]} 47. Nc4 {[%clk 0:00:20.2]} 47... Nd6 {[%clk 0:00:38.9]} 48. Na5
{[%clk 0:00:18.4]} 48... Kd5 {[%clk 0:00:34.9]} 49. Ke2 {[%clk 0:00:18.1]} 49...
Ke5 {[%clk 0:00:28.5]} 50. Nc6+ {[%clk 0:00:16.8]} 50... Kf5 {[%clk 0:00:28]}
51. Ne7+ {[%clk 0:00:16.5]} 51... Kg5 {[%clk 0:00:28.4]} 52. Nd5 {[%clk
0:00:13.8]} 52... Nf5 {[%clk 0:00:27.3]} 53. Nc7 {[%clk 0:00:11.6]} 53... Ng7
{[%clk 0:00:26.4]} 54. Kf1 {[%clk 0:00:07.3]} 54... Kf5 {[%clk 0:00:25.7]} 55.
Kg2 {[%clk 0:00:07.2]} 55... Ne6 {[%clk 0:00:25.5]} 56. Nd5 {[%clk 0:00:06.2]}
56... Kg5 {[%clk 0:00:25]} 57. Kh2 {[%clk 0:00:05.1]} 57... Kh4 {[%clk
0:00:23.7]} 58. Kg2 {[%clk 0:00:05.1]} 58... Kh5 {[%clk 0:00:17.8]} 59. Kh2
{[%clk 0:00:05.2]} 59... Kg5 {[%clk 0:00:18.1]} 60. Kg2 {[%clk 0:00:05.6]} 60...
Kf5 {[%clk 0:00:17.9]} 61. Ne7+ {[%clk 0:00:05.7]} 61... Kf6 {[%clk 0:00:17.1]}
62. Nd5+ {[%clk 0:00:06]} 62... Ke5 {[%clk 0:00:17.6]} 63. Ne7 {[%clk
0:00:06.4]} 63... Nd8 {[%clk 0:00:16.8]} 64. Ng6+ {[%clk 0:00:06.5]} 64... Kf5
{[%clk 0:00:16.8]} 65. Ne7+ {[%clk 0:00:06.8]} 65... Kf6 {[%clk 0:00:16.5]} 66.
Nd5+ {[%clk 0:00:07]} 66... Ke5 {[%clk 0:00:17]} 67. Nc7 {[%clk 0:00:07.1]}
67... Ne6 {[%clk 0:00:15.2]} 68. Ne8 {[%clk 0:00:06.6]} 68... Kf5 {[%clk
0:00:12.6]} 69. Nd6+ {[%clk 0:00:06.8]} 69... Ke5 {[%clk 0:00:12.8]} 70. Ne4
{[%clk 0:00:07.1]} 70... Kf5 {[%clk 0:00:10.1]} 71. Nd6+ {[%clk 0:00:07.2]}
71... Kg5 {[%clk 0:00:10.7]} 72. Ne4+ {[%clk 0:00:07.4]} 72... Kh4 {[%clk
0:00:11.2]} 73. Nd6 {[%clk 0:00:06.5]} 73... f3+ {[%clk 0:00:10.6]} 74. Kg1
{[%clk 0:00:06.8]} 74... g3 {[%clk 0:00:09]} 75. fxg3+ {[%clk 0:00:06]} 75...
Kxg3 {[%clk 0:00:09.9]} 76. Ne4+ {[%clk 0:00:06.4]} 76... Kf4 {[%clk 0:00:10.2]}
77. Kf2 {[%clk 0:00:06.8]} 77... Kg4 {[%clk 0:00:08.6]} 78. Nd6 {[%clk
0:00:06.6]} 78... Ng5 {[%clk 0:00:07.7]} 79. Nc4 {[%clk 0:00:05.1]} 79... Nh3+
{[%clk 0:00:07.5]} 80. Kf1 {[%clk 0:00:05.5]} 80... Kg3 {[%clk 0:00:07.5]} 81.
Ne5 {[%clk 0:00:05.1]} 81... Nf4 {[%clk 0:00:07.1]} 82. Nd7 {[%clk 0:00:04.6]}
82... Ng2 {[%clk 0:00:07.2]} 83. Nxc5 {[%clk 0:00:04.5]} 83... Ne3+ {[%clk
0:00:07.5]} 84. Ke1 {[%clk 0:00:04.6]} 84... f2+ {[%clk 0:00:07.9]} 85. Ke2
{[%clk 0:00:04.7]} 85... f1=Q+ {[%clk 0:00:08.2]} 0-1